Cogmind - Beta 16 @@@ ROGUE MODE // 2025.12.21 @ 23:34:10 Player: emory Result: Core destroyed Performance ------------- Evolutions (4) 2000 Regions Visited (6) 1200 Robots Destroyed (14) 70 Value Destroyed (147) 147 Prototype IDs (2) 40 Alien Tech Used (0) 0 Bonus (0) 0 TOTAL SCORE: 3457 Bonus ------- None Cogmind --------- Core Integrity 0/850 Matter 287/300 Energy 99/100 System Corruption 4% Temperature Cool (0) Movement Core (50) Location -6/Factory Parts ------- > --- POWER (2) -------- (None) > --- PROPULSION (4) --- (None) > --- UTILITY (5) ------ Signal Interpreter > --- WEAPON (4) ------- (None) > --- INVENTORY (5) ---- Cryofiber Web Peak State ------------ > --- POWER ------------ (None) > --- PROPULSION ------- (None) > --- UTILITY ---------- Armored Scrap Engine Signal Interpreter > --- WEAPON ----------- Small Laser > --- INVENTORY -------- Cryofiber Web [Rating: 22] Favorites ----------- Power Ion Engine Engine Ion Engine Propulsion Titanium Leg Leg Titanium Leg Wheel Wheel Flight Unit Flight Unit Utility Signal Interpreter Device Sensor Array Storage Small Storage Unit Processor Signal Interpreter Weapon Small Laser Energy Gun Small Laser Build | -11 -10 -9 -8 -8 -8 -6 ------- Run | Yrd Mat Mat Mat Sto Rec Fac Slots Evolved 8 | . . 2 2 . . 4 Power 1 | . . . . . . 1 Propulsion 2 | . . 2 . . . . Utility 3 | . . . 2 . . 1 Weapon 2 | . . . . . . 2 Parts Attached 20 | 6 5 2 2 . 4 1 Power 3 | 1 1 . 1 . . . Engine 3 | 1 1 . 1 . . . Core . | . . . . . . . Reactor . | . . . . . . . Propulsion 10 | 2 2 2 1 . 3 . Treads . | . . . . . . . Leg 3 | . . . . . 3 . Wheel 2 | 2 . . . . . . Hover . | . . . . . . . Flight 5 | . 2 2 1 . . . Utility 4 | 1 2 . . . 1 . Device 2 | . 1 . . . 1 . Storage 1 | 1 . . . . . . Processor 1 | . 1 . . . . . Hackware . | . . . . . . . Protection . | . . . . . . . Artifact . | . . . . . . . Weapon 3 | 2 . . . . . 1 Energy Gun 3 | 2 . . . . . 1 Energy Cannon . | . . . . . . . Ballistic Gun . | . . . . . . . Ballistic Cannon . | . . . . . . . Launcher . | . . . . . . . Special Weapon . | . . . . . . . Impact Weapon . | . . . . . . . Slashing Weapon . | . . . . . . . Piercing Weapon . | . . . . . . . Special Melee Weapon . | . . . . . . . Unidentified Prototypes 1 | . . . . . 1 . Parts Lost 14 | . . . 3 5 3 3 Power 2 | . . . 1 1 . . Propulsion 8 | . . . 1 4 3 . Utility 3 | . . . 1 . . 2 Weapon 1 | . . . . . . 1 Highest Loss Streak 8 | . . . 3 8 3 2 To Critical Strikes . | . . . . . . . Average Backups 4 | 3 5 4 4 4 3 1 Power . | . . 1 . . . . Propulsion 1 | 2 3 1 . . . . Utility . | . . . . 1 1 1 Weapon 1 | . 1 2 3 3 2 . Tool/Special . | . . . . . . . Unused Backups 8 | . 5 . . . 2 1 Power . | . . . . . . . Propulsion 6 | . 4 . . . 2 . Utility 1 | . . . . . . 1 Weapon 1 | . 1 . . . . . Tool/Special . | . . . . . . . Average Slot Usage (%) 57 | . 93 82 63 18 31 13 Engine 6 | . 14 11 9 1 . . Leg 6 | . . . . . 21 . Wheel 7 | . 17 . . . . . Flight 8 | . 10 42 36 7 . . Device 2 | . . 11 9 . . 5 Storage 3 | . 8 . . . . . Processor 10 | . 13 11 9 9 9 6 Energy Gun 11 | . 28 7 . . . . Peak Build Rating 22 | 6 7 9 7 6 19 22 Average Rating 9 | 4 6 7 6 1 9 19 On Entrance 6 | . 6 7 7 6 1 19 Avg Prop Armor Cover (%) 27 | . . . . . 27 . Naked Turns . | . . . . . . . Heaviest Build 12 | 10 12 8 6 3 1 2 Greatest Support 51 | 20 20 20 20 20 51 3 Greatest Overweight (x) 1 | 1 . . . . . . Average Overweight (x) . | . . . . . . . Largest Inventory Capacity 8 | 8 8 5 5 5 5 5 Average Capacity 5 | 7 6 5 5 5 5 5 Most Carried 7 | 6 7 5 5 4 5 2 Average Carried 4 | 3 5 4 4 4 3 1 Final Capacity 8 | 8 5 5 5 5 5 5 Final Carried 6 | 6 5 5 4 4 2 1 Scrap Engine Consumption 8 | . . . . . . 8 Class Distribution -------------------- 91% | Mutant 8% | Scavenger-Sprinter Dominant Class ---------------- Mutant | -10/Materials Scavenger-Sprinter | -9/Materials Scavenger-Sprinter | -8/Materials Mutant | -8/Storage Mutant | -8/Recycling Mutant | -6/Factory Resources | -11 -10 -9 -8 -8 -8 -6 ----------- Run | Yrd Mat Mat Mat Sto Rec Fac Matter Collected 330 | 198 102 30 . . . . Remotely . | . . . . . . . Salvage Created 370 | . 370 . . . . . Parts 23 | . 23 . . . . . Haulers Intercepted . | . . . . . . . Recyclers Shooed 4 | . 4 . . . . . Parts Field Recycled . | . . . . . . . Retrieved Matter . | . . . . . . . Parts Self-Destructed . | . . . . . . . Prevented . | . . . . . . . Parts Restored . | . . . . . . . Kills | -11 -10 -9 -8 -8 -8 -6 ------- Run | Yrd Mat Mat Mat Sto Rec Fac Combat Hostiles Destroyed 10 | . 10 . . . . . Guns 10 | . 10 . . . . . Classes Destroyed 4 | . 4 . . . . . Builder 1 | . 1 . . . . . Recycler 3 | . 3 . . . . . Swarmer 9 | . 9 . . . . . Grunt 1 | . 1 . . . . . Best Kill Streak 6 | . 6 . . . . . Combat Bots Only 6 | . 6 . . . . . Max Kills in Single Turn 1 | . 1 . . . . . Gunslinging . | . . . . . . . Exploded . | . . . . . . . Melee . | . . . . . . . Uniques/NPCs Destroyed . | . . . . . . . Combat | -11 -10 -9 -8 -8 -8 -6 -------- Run | Yrd Mat Mat Mat Sto Rec Fac Hostile Shots Fired 286 | . 37 6 15 8 23 197 Missed 119 | . 12 3 8 5 4 87 Hits 167 | . 25 3 7 3 19 110 Projectile 167 | . 25 3 7 3 19 110 Critical Strikes 4 | . . . . . 3 1 Damage Taken 2546 | . 313 31 101 158 421 1522 Core 1360 | . 165 10 40 92 201 852 Absorbed by Shields . | . . . . . . . Regen/Repaired (Parts) 100 | . . . . . . 100 Core Remaining (%) 67 | 100 34 97 . . 39 . Volleys Fired 54 | . 51 . . . . 3 Largest 2 | . 2 . . . . 1 Hottest 80 | . 80 . . . . 40 Shots Fired 105 | . 102 . . . . 3 Gun 105 | . 102 . . . . 3 Cannon . | . . . . . . . Launcher . | . . . . . . . Special . | . . . . . . . Kinetic . | . . . . . . . Thermal 105 | . 102 . . . . 3 Explosive . | . . . . . . . Electromagnetic . | . . . . . . . Robot Hit Streak 8 | . 8 . . . . 1 Robot Miss Streak 4 | . 4 . . . . 2 Penetration Max . | . . . . . . . Secondary Targets . | . . . . . . . Shots Hit Robots 56 | . 55 . . . . 1 Core Hits 23 | . 19 . . . . 4 Critical Kills . | . . . . . . . Critical Parts Destroyed . | . . . . . . . Critical Strikes . | . . . . . . . Melee Attacks . | . . . . . . . Impact . | . . . . . . . Slashing . | . . . . . . . Piercing . | . . . . . . . Sneak Attacks . | . . . . . . . Combat Hostiles . | . . . . . . . Follow-up Attacks . | . . . . . . . Damage Inflicted 665 | . 615 . . . . 50 Guns 637 | . 615 . . . . 22 Cannons . | . . . . . . . Explosions . | . . . . . . . Melee . | . . . . . . . Ramming 28 | . . . . . . 28 Kinetic . | . . . . . . . Thermal 637 | . 615 . . . . 22 Explosive . | . . . . . . . Electromagnetic . | . . . . . . . Impact . | . . . . . . . Slashing . | . . . . . . . Piercing . | . . . . . . . Highest Corruption 4 | . . . . . . 4 Average Corruption 2 | . . . . . . 2 Corruption Purged . | . . . . . . . Corruption Blocked . | . . . . . . . Effects 1 | . . . . . . 1 Matter Fused 1 | . . . . . . 1 Overload Shots . | . . . . . . . Overflow Damage . | . . . . . . . Projectiles . | . . . . . . . Explosions . | . . . . . . . Melee . | . . . . . . . Knockbacks . | . . . . . . . Impact . | . . . . . . . Kinetic . | . . . . . . . Secondary . | . . . . . . . Self-Inflicted Damage 12 | . . . . . . 12 Shots . | . . . . . . . Rammed 5 | . . . . . . 5 Targets Rammed 5 | . . . . . . 5 Kicked . | . . . . . . . Crushed . | . . . . . . . Highest Temperature 234 | . 234 . . . 24 3 Average Temperature 62 | . 64 . . . 16 3 Received Heat Transfer 426 | . 18 18 27 . 303 60 Siege Activations . | . . . . . . . Martial Activations . | . . . . . . . Shielding Activations . | . . . . . . . Robots Disrupted . | . . . . . . . Combat Hostiles . | . . . . . . . Robots Corrupted . | . . . . . . . Combat Hostiles . | . . . . . . . Parts Fried . | . . . . . . . Impact Corruptions . | . . . . . . . Robots Melted . | . . . . . . . Combat Hostiles . | . . . . . . . Parts Melted 3 | . 3 . . . . . Heat Transferred 1450 | . 1400 . . . . 50 Parts Sabotaged . | . . . . . . . Parts Stolen . | . . . . . . . Parts Stripped . | . . . . . . . Power Chain Reactions . | . . . . . . . Alert | -11 -10 -9 -8 -8 -8 -6 ------- Run | Yrd Mat Mat Mat Sto Rec Fac Maximum Alert Level 1 | . 1 . . . . . Low Security (%) 85 | 100 63 100 100 100 100 100 Level 1 14 | . 36 . . . . . Level 2 . | . . . . . . . Level 3 . | . . . . . . . Level 4 . | . . . . . . . Level 5 . | . . . . . . . High Security . | . . . . . . . Max Security . | . . . . . . . Peak Influence 245 | . 245 92 119 38 5 80 Initial 87 | . . 87 34 38 . 50 Average 52 | . 101 83 74 7 . 33 Influence Increases 782 | . 410 15 118 19 5 215 Destroy 0b10 Robot/C 200 | . 200 . . . . . Destroy 0b10 Robot/NC 20 | . 20 . . . . . Destroy Leader 40 | . 40 . . . . . Successful Hack 22 | . . . 13 4 5 . Advance Influence 50 | . . . . . . 50 Partial Spotted 60 | . 15 15 . 15 . 15 Lose Combat Pursuer 390 | . 135 . 105 . . 150 Influence Decreases 697 | . 202 141 108 111 5 130 Entered New Map 223 | . . 121 48 54 . . Time Decay 371 | . 202 20 30 14 5 100 Lost Part 98 | . . . 30 38 . 30 Purge Threat 5 | . . . . 5 . . Squads Dispatched 7 | . 1 1 . 1 . 4 Investigation 1 | . . . . . . 1 Extermination 1 | . . . . . . 1 Reinforcement 5 | . 1 1 . 1 . 2 Assault . | . . . . . . . Garrison . | . . . . . . . Intercept . | . . . . . . . Searches Triggered . | . . . . . . . Construction Impeded . | . . . . . . . Haulers Reinforced . | . . . . . . . Active Scanning Responses . | . . . . . . . Cargo Convoy Interrupts . | . . . . . . . Stealth | -11 -10 -9 -8 -8 -8 -6 --------- Run | Yrd Mat Mat Mat Sto Rec Fac Distress Signals 3 | . 1 . 1 1 . . Communications Jammed . | . . . . . . . Distress Signals . | . . . . . . . Times Spotted 66 | . 22 5 10 3 3 23 Peak Tracking Total 12 | . 7 7 11 3 5 12 Tactical Retreats 10 | . 2 . 2 . 1 5 Traps | -11 -10 -9 -8 -8 -8 -6 ------- Run | Yrd Mat Mat Mat Sto Rec Fac Traps Triggered 5 | . 3 . . 1 . 1 Indirectly . | . . . . . . . Trap Hack Attempts . | . . . . . . . Triggered . | . . . . . . . Disarmed . | . . . . . . . Reprogrammed . | . . . . . . . Reused . | . . . . . . . Traps Extracted . | . . . . . . . Installed . | . . . . . . . Triggered . | . . . . . . . Machines | -11 -10 -9 -8 -8 -8 -6 ---------- Run | Yrd Mat Mat Mat Sto Rec Fac Machines Disabled . | . . . . . . . Max in Single Turn . | . . . . . . . Machines Repaired . | . . . . . . . Machines Dismantled . | . . . . . . . Machines Sabotaged . | . . . . . . . Overloaded Fab Kills . | . . . . . . . Hacking | -11 -10 -9 -8 -8 -8 -6 --------- Run | Yrd Mat Mat Mat Sto Rec Fac Machines Accessed 12 | . . 2 3 2 4 1 Terminals 8 | . . 1 2 2 2 1 Fabricators . | . . . . . . . Repair Stations . | . . . . . . . Recycling Units . | . . . . . . . Scanalyzers 2 | . . 1 1 . . . Garrison Access . | . . . . . . . Total Hacks 53 | . . 4 11 5 31 2 Successful 40 | . . 2 6 4 28 . Failed 13 | . . 2 5 1 3 2 Catastrophic 2 | . . . 1 . . 1 Database Lockouts . | . . . . . . . Manual 2 | . . . . 2 . . Terminals 22 | . . 2 8 5 5 2 Fabricators . | . . . . . . . Repair Stations . | . . . . . . . Recycling Units . | . . . . . . . Scanalyzers 5 | . . 2 3 . . . Garrison Access . | . . . . . . . Terminal Hacks 36 | . . 1 3 4 28 . Record 24 | . . . . . 24 . Level Access Points 1 | . . 1 . . . . Emergency Access Points 2 | . . . . 1 1 . Alert Level 1 | . . . . 1 . . Unreport Threat 1 | . . . . 1 . . Locate Traps 1 | . . . . 1 . . Recall Reinforcements 1 | . . . 1 . . . Zone Layout 3 | . . . 2 . 1 . Release Object 2 | . . . . . 2 . Fabricator Hacks . | . . . . . . . Repair Station Hacks . | . . . . . . . Recycling Unit Hacks . | . . . . . . . Scanalyzer 4 | . . 1 3 . . . Retrieve Study 4 | . . 1 3 . . . Garrison Access Hacks . | . . . . . . . Unauthorized Hacks . | . . . . . . . Terminals . | . . . . . . . Fabricators . | . . . . . . . Repair Stations . | . . . . . . . Recycling Units . | . . . . . . . Scanalyzers . | . . . . . . . Garrison Access . | . . . . . . . Data Cores Recovered . | . . . . . . . Used . | . . . . . . . Hacking Detections 5 | . . 1 2 . 1 1 Full Trace Events 3 | . . . 1 . 1 1 Feedback Events . | . . . . . . . Feedback Blocked . | . . . . . . . Robot Schematics Acquired . | . . . . . . . Robots Built . | . . . . . . . Authchips . | . . . . . . . Time . | . . . . . . . Total Robot Build Rating . | . . . . . . . Part Schematics Acquired . | . . . . . . . Parts Built . | . . . . . . . Authchips . | . . . . . . . Time . | . . . . . . . Total Part Build Rating . | . . . . . . . Part Studies Acquired 4 | . . 1 3 . . . Parts Repaired . | . . . . . . . Time . | . . . . . . . Parts Recycled . | . . . . . . . Recycled Matter . | . . . . . . . Retrieved Matter . | . . . . . . . Retrieved Components . | . . . . . . . Parts Scanalyzed . | . . . . . . . Part Schematics Acquired . | . . . . . . . Parts Damaged . | . . . . . . . Bothacking | -11 -10 -9 -8 -8 -8 -6 ------------ Run | Yrd Mat Mat Mat Sto Rec Fac Used RIF Installer . | . . . . . . . Robots Hacked . | . . . . . . . Non-combat . | . . . . . . . Combat . | . . . . . . . Robot Hacks Applied . | . . . . . . . Relay Couplers Released . | . . . . . . . Fabnet Peak Effective % . | . . . . . . . Robots Rewired . | . . . . . . . Allies Hacked . | . . . . . . . Hacks Repelled . | . . . . . . . Allies | -11 -10 -9 -8 -8 -8 -6 -------- Run | Yrd Mat Mat Mat Sto Rec Fac Total Allies . | . . . . . . . Largest Group . | . . . . . . . Highest-Rated Group . | . . . . . . . Highest-Rated Ally . | . . . . . . . Total Orders . | . . . . . . . Ally Attacks . | . . . . . . . Total Damage . | . . . . . . . Kills . | . . . . . . . Allies Corrupted . | . . . . . . . Allies Melted . | . . . . . . . Intel | -11 -10 -9 -8 -8 -8 -6 ------- Run | Yrd Mat Mat Mat Sto Rec Fac Active Infowar (turns) 138 | . 20 54 64 . . . Sensors 138 | . 20 54 64 . . . Robot Analysis Total . | . . . . . . . Derelict Logs Recovered . | . . . . . . . Drone Launches . | . . . . . . . Drone Recoveries . | . . . . . . . Exploration | -11 -10 -9 -8 -8 -8 -6 ------------- Run | Yrd Mat Mat Mat Sto Rec Fac Turns Passed 1383 | 50 561 54 64 47 407 200 Spaces Moved 1895 | 43 699 165 196 100 339 353 Core 573 | 9 . . . 86 125 353 Treads . | . . . . . . . Legs 214 | . . . . . 214 . Wheels 314 | 34 280 . . . . . Hover . | . . . . . . . Flight 794 | . 419 165 196 14 . . Fastest Speed 31 | 50 37 31 31 31 50 50 Average Speed 57 | 76 54 31 31 47 100 50 Slowest Speed 130 | 100 80 31 34 50 130 50 Overloaded Moves . | . . . . . . . Propulsion Burnouts . | . . . . . . . Robots Hopped 7 | . 4 2 1 . . . Potential Cave-ins . | . . . . . . . Cave-ins Triggered . | . . . . . . . Exploration Rate (%) 35 | 3 90 29 27 23 63 15 Regions Visited 6 Branch Regions 2 Pre-discovered Areas . | . . . . . . . Known Exits Taken 4 | . 1 1 1 1 . . Unknown Exits Taken 2 | 1 . . . . 1 . Scrap Searched . | . . . . . . . Spaces Dug . | . . . . . . . Terrain Destroyed . | . . . . . . . Melee . | . . . . . . . Projectile . | . . . . . . . AOE . | . . . . . . . Terrain Rammed . | . . . . . . . Walls Destroyed . | . . . . . . . Machines Disabled . | . . . . . . . Actions | -11 -10 -9 -8 -8 -8 -6 --------- Run | Yrd Mat Mat Mat Sto Rec Fac Total 2079 | 60 777 166 197 99 407 373 Wait 74 | . 7 . . . 55 12 Move 1875 | 42 690 160 193 99 338 353 Hop 7 | . 4 2 1 . . . Pick Up 29 | 12 10 . 1 . 6 . Fast Attach . | . . . . . . . Attach 17 | 6 2 2 2 . 4 1 Detach 2 | . . 2 . . . . Swap 3 | . 3 . . . . . Drop 14 | . 10 . . . 4 . Fire 54 | . 51 . . . . 3 Melee . | . . . . . . . Ram 4 | . . . . . . 4 Kick . | . . . . . . . Crush . | . . . . . . . Escape Stasis . | . . . . . . . Rewire . | . . . . . . . Trap . | . . . . . . . Miscellaneous . | . . . . . . . Route ------- -11/Scrapyard -10/Materials (discovered 4 exits: *Mat x3 / *Min) -9/Materials (discovered 3 exits: *Mat x3) -8/Materials -8/Storage -8/Recycling -6/Factory History --------- Turn | Location | Event 20 | -11/Scrapyard | Discovered new exit (range 16) 51 | -11/Scrapyard | Entered Materials 143 | -10/Materials | Discovered new exit (range 15) 152 | -10/Materials | Identified exit to Materials 302 | -10/Materials | Build established: Mutant 313 | -10/Materials | Discovered exit to Materials (range 15) 342 | -10/Materials | Discovered exit to Materials (range 14) 436 | -10/Materials | Discovered new exit (range 7) 438 | -10/Materials | Identified exit to Mines 529 | -10/Materials | Core integrity fell below 50% 612 | -10/Materials | Entered another Materials area 612 | -9/Materials | Evolved 2 slots: Propulsion x2 626 | -9/Materials | Identified exit to Materials 666 | -9/Materials | Entered another Materials area 666 | -8/Materials | Evolved 2 slots: Utility x2 712 | -8/Materials | Discovered new exit (range 16) 722 | -8/Materials | Identified exit to Storage 730 | -8/Materials | Entered Storage 766 | -8/Storage | Lost 8 parts (2p5n1u) 775 | -8/Storage | Used back door to open Recycling access 775 | -8/Storage | Discovered new exit (range 5) 777 | -8/Storage | Identified exit to Recycling 777 | -8/Storage | Entered Recycling 778 | -8/Recycling | Met a Zionite searching for Scraptown 955 | -8/Recycling | Scanned before Scraplab entrance 998 | -8/Recycling | Entered Scraplab 1012 | -8/Recycling | Discovered new exit (range 3) 1126 | -8/Recycling | Angered Scraplab inhabitants 1128 | -8/Recycling | Found Prototype Device 1144 | -8/Recycling | Core integrity fell below 50% 1168 | -8/Recycling | Identified Scrap Engine 1169 | -8/Recycling | Lost 3 parts (3n) 1175 | -8/Recycling | Discovered new exit (range 16) 1184 | -8/Recycling | Entered Factory 1184 | -6/Factory | Evolved 4 slots: Power x1, Utility x1, Weapon x2 1322 | -6/Factory | Core integrity fell below 50% 1368 | -6/Factory | Core integrity fell below 20% 1384 | -6/Factory | Core destroyed Last Messages --------------- 01337_ Arm. Scrap Engine consumes Hrd. Light Armor Plating. 01340_ Arm. Scrap Engine consumes Plasma Rifle. 01346_ S-27 Virus destroyed. 01351_ Arm. Scrap Engine destroyed. 01351_ Scrap Engine core remains intact and functional. 01351_ ALERT: Hostiles spotted, dispatching reinforcements to Terminal F015. 01354_ ALERT: Potential suspicious activity detected, Programmers report to Factory Zone 4C. 01365_ System corrupted: Matter fused (-5). 01378_ Triggered Tesla Bomb Trap. 01378_ A bubble of electromagnetic force engulfs the area. 01378_ Scrap Engine destroyed. 01378_ S-27 Virus destroyed. 01384_ Slammed into K-01 Serf. 01384_ Destabilizing: Core damaged (-25). Map ----- +----------------------------------------------------+ | ?????????????????????????????????????????????????? | | ?????????????????????????????????????????????????? | | ?????????????????????????????????????????????????? | | ?????????????????????????????????????????????????? | | ?????????????????????????????????????????????????? | | ?????????????????????????????????????????????????? | | ?????????????????????????????????????????????????? | | ?????????????????????????????????????????????????? | | ?????????????????????????????????????????????????? | | ?????????????????????????????????????????????????? | | ?????????????????????????????????????????????????? | | ?????????????????????????????????????????????????? | | ?????????????????????????????????????????????????? | | ?????????????????????????????????????????????????? | | ?????????????????????????????????????????????????? | | ?????????????????????????????????????????????????? | | ?????????????????????#+###???????????????????????? | | ????????????????????? #??????????????????????? | | ?????????????????????? #???????? ?????????????? | | ?????????????????????? #???????? ?????????????? | | ??????????????????????? +???????? ?????????????? | | ??????????????????????? #??????"" ?????????????? | | ???????????????????????? #??????"" ?????????????? | | ???????????????????????? #??????"" ?????????????? | | ????????????????????????#k#?????? ?????????????? | | ????????????????????????#@#?????? ?????????????? | | ????????????????????????# #??????#/#?????????????# | | ????????????????????????# #??????# #?????????????# | | ????????????????????#####+######## #?????????????# | | ????????????????????# #=#?????????????# | | ????????????????????# "" !#%#?????????????# | | ????????????????????# "Y #=############### | | ????????????????????# "" * # | | ????????????????????# # | | ????????????????????# """"""""" | | ????????????????????# # | | ????????????????????# """"""""" # | | ????????????????????# ####+#####+###### | | ????????????????????# """"""""" #???????????????? | | ????????????????????# ?? #???????????????? | | ????????????????????# ??? #???????????????? | | ??????????????????????????########???????????????? | | ?????????????????????????????????????????????????? | | ?????????????????????????????????????????????????? | | ?????????????????????????????????????????????????? | | ?????????????????????????????????????????????????? | | ?????????????????????????????????????????????????? | | ?????????????????????????????????????????????????? | | ?????????????????????????????????????????????????? | | ?????????????????????????????????????????????????? | +----------------------------------------------------+ Best States ------------- Heat Dissipation 37 Energy Generation 12 Energy Capacity 250 Matter Stores 300 Matter Capacity 300 Sight Range 16 Robot Scan Range 14 Terrain Scan Density 10 Evasion (%) 63 Item Schematics ----------------- None Robot Schematics ------------------ None Fabricated ------------ Nothing Repaired ---------- Nothing Studied --------- Flight Unit | -9/Materials | Hacked Ion Engine | -8/Materials | Hacked Lgt. Ion Engine | -8/Materials | Hacked Sml. Laser | -8/Materials | Hacked Alien Tech Used ----------------- None Achievements -------------- Not So Scrappy Novice Programmer Scrappetite You May Approach The Wall Challenges ------------ None Game ------ Seed TimingRecoilHoverbase Manual? 0 Play Time 00:44:26 Cumulative 40.5 hours Start 2025.12.21 @ 22:44:45 End 2025.12.21 @ 23:34:10 Sessions 1 Manual Loads 0 Difficulty Rogue Special Mode None Game No. 57 Rogue 57 Adventurer 0 Explorer 0 Win Type - Total 0 Types 0/0/0/0/0/0/0/0/0/0 Lore% 18 Gallery% 23 Achievement% 18 Wizard Run 0 Options --------- Layout 2 ASCII 1 Keyboard 0 Movement Vi Keybinds 0 Fullscreen 1 Font 16/SmallcapsGlow Map View 50x44 Zoom Use 0% Tactical HUD 1 Map Filters NONE Filters NONE Steam SD RUN: c5eebbd1-39bd-43fa-be75-1584763d9691